bitfinex/quotes_BTCUSD_20230404
["timestamp","ask_amount","ask_price","bid_price","bid_amount"]
[1680606409371,0.02298549,28273.0,28272.0,0.421789]
[1680606409588,0.02298549,28273.0,28272.0,0.75215153]
[1680606410243,0.02298549,28273.0,28272.0,0.35336253]
[1680606410466,0.02298549,28273.0,28272.0,0.35354253]
[1680606412713,0.02298549,28273.0,28272.0,0.35336253]
[1680606412931,0.02298549,28273.0,28272.0,0.81729463]
[1680606413154,0.02298549,28273.0,28272.0,0.86707898]
[1680606413372,0.02287999,28273.0,28272.0,0.422921]
[1680606413591,0.02287999,28273.0,28272.0,0.437069]
[1680606413803,0.02287999,28273.0,28272.0,0.422921]
[1680606414026,0.02287999,28273.0,28272.0,0.028121]
[1680606414248,0.02287999,28273.0,28272.0,0.89352905]
[1680606414969,0.02287999,28273.0,28272.0,1.24823961]
[1680606415189,0.02287999,28273.0,28272.0,0.80527956]
[1680606415384,0.02287999,28273.0,28272.0,1.15667607]
[1680606416072,0.02287999,28273.0,28272.0,1.14817607]
[1680606416285,0.02287999,28273.0,28272.0,0.79346551]
[1680606416710,0.02287999,28273.0,28272.0,0.88867956]
[1680606416921,0.02287999,28273.0,28272.0,0.86067956]
[1680606417136,0.02287999,28273.0,28272.0,2.16188006]
[1680606417368,0.02287999,28273.0,28272.0,2.13388006]
[1680606417587,0.02287999,28273.0,28272.0,2.16188006]
[1680606417812,0.02287999,28273.0,28272.0,2.13388006]
[1680606418033,0.02287999,28273.0,28272.0,2.16188006]
[1680606418250,0.02287999,28273.0,28272.0,2.13388006]
[1680606418479,0.02277854,28273.0,28272.0,2.13370006]
[1680606418702,0.02277854,28273.0,28272.0,2.16170006]
[1680606419606,0.02277854,28273.0,28272.0,2.13370006]
[1680606419841,0.02277854,28273.0,28272.0,0.88867956]
[1680606420061,0.02277854,28273.0,28272.0,0.86067956]
[1680606420292,0.02277854,28273.0,28272.0,0.88867956]
[1680606420513,0.02277854,28273.0,28272.0,2.56633156]
[1680606420737,0.02277854,28273.0,28272.0,1.22942038]
[1680606420952,0.02277854,28273.0,28272.0,0.46076182]
[1680606421175,0.02277854,28273.0,28272.0,0.43264082]
[1680606421395,0.02277854,28273.0,28272.0,0.46064082]
[1680606422294,0.02277854,28273.0,28272.0,0.43264082]
[1680606422728,0.02277854,28273.0,28272.0,0.45564082]
[1680606423408,0.0226676,28273.0,28272.0,0.45564082]
[1680606424521,0.06468317,28273.0,28272.0,0.45564082]
[1680606426783,0.06468317,28273.0,28272.0,0.02306]
[1680606426996,0.06468317,28273.0,28272.0,0.723]
[1680606426997,0.59760851,28273.0,28272.0,0.723]
[1680606427218,0.59778851,28273.0,28272.0,0.7]
[1680606427474,0.59778851,28273.0,28272.0,0.71]
[1680606427919,0.31754051,28273.0,28272.0,0.71]
[1680606428385,0.31754051,28273.0,28272.0,0.7]
[1680606428610,0.31754051,28273.0,28272.0,0.703]
[1680606429068,0.34839751,28273.0,28272.0,0.703]
[1680606429293,0.34839751,28273.0,28272.0,0.7]
[1680606429517,0.31754051,28273.0,28272.0,0.703]
[1680606429990,0.34877151,28273.0,28272.0,0.701]
[1680606430250,0.31754051,28273.0,28272.0,0.701]
[1680606430993,0.23454051,28273.0,28272.0,0.701]
[1680606431252,0.26623251,28273.0,28272.0,0.701]
[1680606431483,0.27490051,28273.0,28272.0,0.001]
[1680606431709,0.27472051,28273.0,28272.0,0.001]
[1680606431896,0.27472051,28273.0,28270.0,0.70018]
[1680606432117,0.029457,28272.0,28270.0,0.70018]
[1680606432336,0.20603473,28272.0,28270.0,1.10952277]
[1680606432557,0.030107,28271.0,28270.0,1.10952277]
[1680606432780,0.17675773,28272.0,28270.0,1.10952277]
[1680606433004,0.18524573,28272.0,28270.0,1.11252277]
[1680606433226,0.18514644,28272.0,28270.0,1.11252277]
[1680606433445,0.18496644,28272.0,28270.0,1.11270277]
[1680606434370,0.04200495,28271.0,28270.0,0.70318]
[1680606434808,0.04200495,28271.0,28270.0,0.70018]
[1680606435051,0.04200495,28271.0,28270.0,0.70318]
[1680606435274,0.04200495,28271.0,28270.0,1.15005633]
[1680606435494,0.04200495,28271.0,28270.0,1.14705633]
[1680606435710,0.04200495,28271.0,28270.0,1.15005633]
[1680606435930,0.04200495,28271.0,28270.0,1.14705633]
[1680606436153,0.04200495,28271.0,28270.0,1.15705633]
[1680606436374,0.21007951,28273.0,28270.0,1.15705633]
[1680606436593,0.20989951,28273.0,28270.0,1.15705633]
[1680606436815,0.16781172,28272.0,28270.0,1.15705633]
[1680606437044,0.0228476,28273.0,28270.0,1.15705633]
[1680606437271,0.18596769,28273.0,28270.0,1.15705633]
[1680606437507,0.18596769,28273.0,28270.0,1.14705633]
[1680606437731,0.18596769,28273.0,28270.0,1.15705633]
[1680606437946,0.0226676,28273.0,28271.0,0.34136299]
[1680606439340,0.22598242,28277.0,28271.0,0.003]
[1680606439593,0.25499283,28280.0,28279.0,0.7]
[1680606439840,0.03200985,28283.0,28282.0,1.2]
[1680606440117,0.01930985,28283.0,28282.0,2.29283521]
[1680606440405,0.0026955,28288.0,28287.0,1.2718]
[1680606440703,0.12672391,28298.0,28287.0,2.90850225]
[1680606440704,0.0158562,28289.0,28287.0,2.90850225]
[1680606441154,0.0158562,28289.0,28288.0,1.30688492]
[1680606441159,0.0158562,28289.0,28288.0,0.57370407]
[1680606441678,0.0158562,28289.0,28288.0,0.25018]
[1680606442001,0.0464442,28289.0,28288.0,0.00018]
[1680606442260,0.1282172,28289.0,28288.0,6e-05]
[1680606442547,0.34840378,28288.0,28284.0,0.7]
[1680606442987,0.54462481,28287.0,28284.0,0.00018]
[1680606442990,0.17282481,28287.0,28284.0,0.00018]
[1680606443280,0.0834,28285.0,28283.0,0.00193098]
[1680606443554,0.031211,28284.0,28283.0,0.00193098]
[1680606443840,0.06393078,28284.0,28283.0,0.00193098]
[1680606444165,0.06393078,28284.0,28275.0,0.00018]
[1680606444166,0.25,28283.0,28275.0,0.00018]
[1680606444405,0.54423081,28282.0,28275.0,0.00012]
[1680606444726,0.083,28276.0,28271.0,0.25086507]
[1680606445005,0.14189681,28275.0,28272.0,0.7]
[1680606445263,0.14189681,28275.0,28272.0,0.70018]
[1680606445532,0.08318,28276.0,28272.0,0.91261046]
[1680606445747,0.00018,28279.0,28272.0,0.12009088]
[1680606445955,0.00018,28280.0,28278.0,0.7]
[1680606446172,0.47652916,28283.0,28279.0,0.06245256]
[1680606446387,0.47652916,28283.0,28276.0,0.08466632]
[1680606446388,0.38869075,28282.0,28281.0,0.7]
[1680606446594,0.36803819,28282.0,28281.0,0.73542456]
[1680606446857,0.00018,28282.0,28281.0,0.70018]
[1680606447065,0.41525545,28282.0,28281.0,0.70018]
[1680606447284,0.00018,28282.0,28281.0,0.70018]
[1680606447492,0.00018,28282.0,28281.0,0.70118]
[1680606447493,0.44281028,28282.0,28281.0,0.70118]
[1680606447701,0.032362,28282.0,28281.0,0.70118]
[1680606447908,0.002,28282.0,28281.0,0.70118]
[1680606448784,0.00018,28284.0,28281.0,1.00298248]
[1680606449006,0.00018,28286.0,28285.0,0.7]
[1680606449216,0.04386883,28287.0,28285.0,0.7]
[1680606449217,0.04386883,28287.0,28285.0,1.13443856]
[1680606449455,0.0158562,28289.0,28286.0,0.06296856]
[1680606449683,0.0158562,28289.0,28288.0,0.7]
[1680606449903,0.0158562,28289.0,28288.0,0.72744]
[1680606450119,0.0158562,28289.0,28288.0,0.70018]
[1680606450335,0.05449014,28289.0,28288.0,0.70018]
[1680606450807,0.05449014,28289.0,28288.0,0.727123]
[1680606451463,0.05449014,28289.0,28288.0,0.728313]
[1680606451909,0.05449014,28289.0,28288.0,1.100113]
[1680606452137,0.05449014,28289.0,28288.0,1.148213]
[1680606452362,0.0158562,28289.0,28288.0,1.148213]
[1680606452585,0.0158562,28289.0,28288.0,1.47492356]
[1680606452804,0.0158562,28289.0,28288.0,2.15101624]
[1680606453028,0.0158562,28289.0,28288.0,2.33271344]
[1680606453258,0.0157896,28289.0,28288.0,2.34667344]
[1680606453469,0.01567646,28289.0,28288.0,1.97831624]
[1680606453699,0.02444115,28289.0,28288.0,2.01481624]
[1680606453919,0.01567646,28289.0,28288.0,2.01481624]
[1680606454129,0.01567646,28289.0,28288.0,2.00631624]
[1680606454571,0.01567646,28289.0,28288.0,2.02895624]
[1680606454782,0.01567646,28289.0,28288.0,2.00631624]
[1680606454997,0.01567646,28289.0,28288.0,1.80869624]
[1680606455214,0.01567646,28289.0,28288.0,2.00631624]
[1680606455424,0.01567646,28289.0,28288.0,2.01481624]
[1680606455650,0.01567646,28289.0,28288.0,2.12917344]
[1680606455869,0.01567646,28289.0,28288.0,2.10111344]
[1680606456098,0.021,28293.0,28292.0,0.9]
[1680606456339,6e-05,28297.0,28296.0,1.0718]
[1680606456560,1.41054746,28300.0,28299.0,1.0718]
[1680606456561,1.0346252,28300.0,28299.0,1.0718]
[1680606456778,0.87464574,28300.0,28299.0,1.79008812]
[1680606457004,0.00012,28302.0,28301.0,0.3718]
[1680606457263,0.01,28305.0,28302.0,0.7]
[1680606457475,0.01,28305.0,28303.0,0.41735312]
[1680606457695,0.01,28305.0,28304.0,0.72328156]
[1680606458125,0.01,28305.0,28304.0,1.33238156]
[1680606458342,0.01,28305.0,28304.0,1.44328156]
[1680606458554,0.01,28305.0,28304.0,1.41468156]
[1680606458990,0.01,28305.0,28304.0,1.005171]
[1680606459195,0.01,28305.0,28304.0,1.44298156]
[1680606459427,0.04373091,28305.0,28304.0,1.78678156]
[1680606459675,0.04373091,28305.0,28304.0,1.81478156]
[1680606459884,0.04373091,28305.0,28304.0,1.78678156]
[1680606460112,0.04373091,28305.0,28304.0,1.79033401]
[1680606460328,0.01,28305.0,28304.0,1.78478156]
[1680606460541,0.01,28305.0,28304.0,1.25428156]
[1680606460998,0.01,28305.0,28304.0,0.303171]
[1680606461221,0.01,28305.0,28304.0,0.081171]
[1680606461430,0.04466098,28305.0,28304.0,0.027957]
[1680606461648,0.01,28305.0,28304.0,0.41066756]
[1680606461854,0.01,28305.0,28304.0,0.49396756]
[1680606462072,0.01,28305.0,28304.0,1.12056756]
[1680606462319,0.01,28305.0,28304.0,2.22006932]
[1680606462540,0.0015,28308.0,28307.0,1.09894728]
[1680606462755,0.0015,28308.0,28307.0,2.04805508]
[1680606462973,0.0015,28308.0,28307.0,2.49641052]
[1680606463197,0.0231,28316.0,28314.0,0.52714728]
[1680606463412,0.02293866,28316.0,28315.0,0.96381812]
[1680606463627,0.02293866,28316.0,28315.0,1.30132812]
[1680606463850,0.02293866,28316.0,28315.0,1.38325812]
[1680606464092,0.01293866,28316.0,28315.0,1.70481356]
[1680606464313,0.01293866,28316.0,28315.0,1.72431356]
[1680606464540,0.021,28322.0,28321.0,0.52714728]
[1680606464759,0.001,28333.0,28329.0,0.52714728]
[1680606465034,0.17285272,28336.0,28331.0,0.35471056]
[1680606465253,0.1699892,28346.0,28335.0,0.60994728]
[1680606465254,0.00018,28340.0,28335.0,0.60994728]
[1680606465481,0.17285272,28341.0,28336.0,0.06321356]
[1680606465696,0.00018,28343.0,28336.0,0.06321356]
[1680606465697,0.17285272,28337.0,28336.0,0.03524456]
[1680606465925,0.17297272,28341.0,28336.0,0.027488]
[1680606466141,0.1699892,28346.0,28333.0,0.00018]
[1680606466142,0.17285272,28335.0,28333.0,0.00018]
[1680606466404,0.00018,28340.0,28334.0,0.35471056]
[1680606466625,0.00018,28340.0,28333.0,0.00018]
[1680606466626,0.17285272,28339.0,28333.0,0.00018]
[1680606466845,0.17285272,28339.0,28334.0,0.00018]
[1680606467056,0.17285272,28336.0,28333.0,0.00218]
[1680606467267,0.095943,28335.0,28334.0,0.00018]
[1680606467697,0.095943,28335.0,28333.0,0.02818]
[1680606467920,0.17285272,28336.0,28334.0,0.35489056]
[1680606468144,0.00018,28340.0,28335.0,0.027413]
[1680606468358,0.00018,28340.0,28339.0,0.52714728]
[1680606468359,0.0001668,28340.0,28339.0,0.52714728]
[1680606468574,0.0274164,28344.0,28340.0,0.52714728]
[1680606468811,0.0273564,28344.0,28340.0,0.35489056]
[1680606469052,0.0273564,28344.0,28343.0,0.0828]
[1680606469265,0.0273564,28344.0,28343.0,0.44619056]
[1680606469473,9.12e-06,28345.0,28344.0,0.0833]
[1680606469689,9.12e-06,28345.0,28344.0,0.55409056]
[1680606469903,0.0006092,28346.0,28344.0,1.24558144]
[1680606470132,0.0004492,28346.0,28345.0,0.54862456]
[1680606470366,0.0461314,28353.0,28350.0,0.69999088]
[1680606470616,0.00185426,28360.0,28354.0,0.4]
[1680606470836,0.00065832,28367.0,28363.0,0.69999088]
[1680606471062,0.001,28369.0,28365.0,0.4]
[1680606471284,6e-05,28370.0,28363.0,0.75442656]
[1680606471285,0.01522693,28380.0,28369.0,0.3718]
[1680606471506,0.43049429,28395.0,28393.0,0.35471056]
[1680606471726,0.1026431,28399.0,28394.0,0.7042]
[1680606471946,6e-05,28413.0,28394.0,0.7042]
[1680606471947,0.00630616,28418.0,28409.0,0.01]
[1680606472165,0.201756,28413.0,28409.0,0.01]
[1680606472386,0.201756,28413.0,28400.0,0.00018]
[1680606472387,0.030398,28412.0,28400.0,0.00018]
[1680606472609,0.35471056,28408.0,28394.0,0.25]
[1680606472840,0.030398,28412.0,28394.0,0.25]
[1680606472841,0.35471056,28401.0,28394.0,0.25]
[1680606473053,0.17234481,28400.0,28398.0,1.0564]
[1680606473284,0.022364,28399.0,28395.0,0.25]
[1680606473531,1.22725123,28414.0,28395.0,0.25]
[1680606473532,6e-05,28402.0,28395.0,0.25]
[1680606473748,0.03217168,28401.0,28396.0,0.14189681]
[1680606473988,0.03217168,28402.0,28396.0,0.49660737]
[1680606474202,0.03210968,28402.0,28400.0,0.6724]
[1680606474433,0.023603,28401.0,28400.0,0.67246]
[1680606474645,0.17601,28406.0,28400.0,0.67252]
[1680606474872,0.023628,28405.0,28401.0,1.19859681]
[1680606475092,0.023628,28405.0,28400.0,0.6724]
[1680606475093,0.11944528,28405.0,28400.0,0.6724]
[1680606475318,0.17605,28402.0,28400.0,0.6724]
[1680606475532,0.05453771,28401.0,28400.0,0.67246]
[1680606475751,0.39960771,28401.0,28400.0,0.67209471]
[1680606475965,0.01595,28401.0,28400.0,0.81405152]
[1680606476193,1.22743123,28414.0,28401.0,0.69999088]
[1680606476411,0.26514,28413.0,28405.0,0.69999088]
[1680606476645,0.015285,28412.0,28406.0,0.14189681]
[1680606476864,0.192692,28412.0,28411.0,1.7275]
[1680606477100,0.199712,28412.0,28411.0,0.00018]
[1680606477317,0.010293,28412.0,28411.0,0.49660737]
[1680606477532,0.05304012,28424.0,28411.0,0.49678737]
[1680606477747,0.06421,28413.0,28412.0,0.49660737]
[1680606478000,0.06421,28413.0,28412.0,1.48839056]
[1680606478218,0.16914,28423.0,28412.0,1.48839056]
[1680606478448,0.16896,28423.0,28414.0,0.35471056]
[1680606478660,0.16896,28423.0,28422.0,1.0505]
[1680606478873,0.0269434,28423.0,28422.0,0.14207681]
[1680606479115,0.10873705,28425.0,28422.0,0.14207681]
[1680606479116,0.1,28425.0,28422.0,6e-05]
[1680606479419,0.184423,28423.0,28401.0,0.39966]
[1680606479650,0.008443,28423.0,28422.0,0.0774]
[1680606479885,0.184413,28423.0,28412.0,6e-05]
[1680606480121,0.28001628,28422.0,28412.0,0.14189681]
[1680606480351,0.28001628,28422.0,28408.0,0.25018]
[1680606480352,0.17595,28417.0,28410.0,0.00018]
[1680606480596,0.17598,28413.0,28401.0,0.3996]
[1680606480827,0.11099628,28416.0,28401.0,0.3996]
[1680606480828,0.008447,28410.0,28401.0,0.01086025]
[1680606481059,0.17606,28402.0,28398.0,0.01790993]
[1680606481290,0.11944628,28401.0,28397.0,0.34983244]
[1680606481519,0.58857628,28401.0,28397.0,0.00018]
[1680606481757,0.00018,28401.0,28400.0,0.69999088]
[1680606481983,0.17606,28402.0,28400.0,0.75471188]
[1680606482218,0.17606,28402.0,28401.0,0.426237]
[1680606482444,0.17606,28402.0,28401.0,0.254617]
[1680606482677,0.00018,28405.0,28401.0,0.37969781]
[1680606482901,0.00018,28409.0,28404.0,0.65442788]
[1680606483160,0.00018,28413.0,28411.0,0.65442788]
[1680606483400,0.021664,28413.0,28412.0,0.14189681]
[1680606483634,0.11111628,28413.0,28411.0,0.1441195]
[1680606483864,0.021228,28412.0,28408.0,0.00018]
[1680606484093,0.0560605,28408.0,28402.0,0.1439395]
[1680606484332,0.16902,28411.0,28409.0,0.00018]
[1680606484568,0.021509,28410.0,28409.0,0.14189681]
[1680606484835,0.16902,28410.0,28405.0,0.00018]
[1680606485058,0.16902,28410.0,28403.0,0.2]
[1680606485289,0.16902,28410.0,28401.0,0.00018]
[1680606485290,0.021857,28409.0,28406.0,0.55471056]
[1680606485519,0.022426,28411.0,28407.0,0.35471056]
[1680606485820,0.36862643,28411.0,28407.0,0.00018]
[1680606486044,0.191535,28410.0,28407.0,0.25]
[1680606486267,0.191535,28410.0,28407.0,0.00018]
[1680606486268,0.020784,28409.0,28407.0,0.00018]
[1680606486492,0.33170081,28409.0,28398.0,0.14783282]
[1680606486715,0.33161281,28408.0,28399.0,0.00946459]
[1680606486975,0.321312,28407.0,28399.0,0.12926934]
[1680606487204,0.16322281,28406.0,28399.0,0.12926934]
[1680606487440,0.16322281,28406.0,28402.0,0.2]
[1680606487441,0.021202,28405.0,28402.0,0.2]
[1680606487681,0.0001668,28408.0,28406.0,0.2]
[1680606487910,6e-05,28410.0,28408.0,0.3718]
[1680606488134,0.02061019,28412.0,28410.0,0.25]
[1680606488359,0.022303,28411.0,28410.0,0.25]
[1680606488598,0.16896,28414.0,28410.0,0.25]
[1680606488839,0.16896,28414.0,28408.0,0.00018]
[1680606488840,0.020905,28413.0,28408.0,0.00018]
[1680606489074,0.189865,28413.0,28407.0,0.45]
[1680606489299,0.022455,28412.0,28407.0,0.2]
[1680606489547,0.36815472,28412.0,28407.0,0.2]
[1680606489766,0.190124,28411.0,28407.0,0.2]
[1680606489999,0.022253,28410.0,28407.0,0.46550385]
[1680606490226,0.022253,28410.0,28407.0,0.46568385]
[1680606490227,0.191213,28410.0,28407.0,0.46568385]
[1680606490457,0.174824,28409.0,28407.0,0.00018]
[1680606490688,0.174824,28409.0,28402.0,0.2]
[1680606490689,0.022142,28408.0,28406.0,6e-05]
[1680606490916,0.0085,28407.0,28401.0,0.02597857]
[1680606491155,0.0085,28407.0,28386.0,1.1]
[1680606491156,0.16333181,28406.0,28399.0,0.25936115]
[1680606491393,0.208449,28404.0,28397.0,0.00018]
[1680606491617,0.33989981,28403.0,28390.0,0.20018]
[1680606491845,0.06498088,28402.0,28395.0,0.30287473]
[1680606492130,0.16405581,28401.0,28395.0,6e-05]
[1680606492349,0.2,28405.0,28401.0,0.2]
[1680606492350,0.00018,28405.0,28401.0,0.2]
[1680606492584,0.021806,28410.0,28408.0,0.35461135]
[1680606492813,0.16896,28408.0,28406.0,0.2]
[1680606493047,0.021031,28407.0,28406.0,0.2]
[1680606493276,0.00018,28408.0,28406.0,0.2]
[1680606493502,6e-05,28409.0,28406.0,0.32926934]
[1680606493970,0.02053,28410.0,28406.0,0.32944934]
[1680606494207,0.02053,28410.0,28406.0,0.20018]
[1680606494445,0.54076731,28410.0,28406.0,0.00018]
[1680606494717,0.191181,28409.0,28400.0,0.2]
[1680606494952,0.16380181,28408.0,28400.0,0.2]
[1680606495191,0.021339,28407.0,28404.0,0.25295051]
[1680606495416,0.021339,28407.0,28403.0,0.2]
[1680606495417,0.021519,28407.0,28403.0,0.2]
[1680606495655,0.48365284,28408.0,28404.0,0.28396483]
[1680606495890,0.48365284,28408.0,28404.0,0.11321651]
[1680606495891,0.3718,28405.0,28404.0,0.11321651]
[1680606496123,0.3718,28405.0,28401.0,0.00018]
[1680606496124,0.3718,28403.0,28401.0,0.00018]
[1680606496397,0.020874,28402.0,28401.0,6e-05]
[1680606496645,0.3718,28401.0,28398.0,0.25562475]
[1680606496895,0.3718,28399.0,28398.0,0.00018]
[1680606497141,0.394581,28399.0,28396.0,0.12065444]
[1680606497364,0.394581,28399.0,28397.0,0.24758057]
[1680606497365,0.69376,28398.0,28397.0,0.24758057]
[1680606497624,0.69376,28398.0,28394.0,0.00018]
[1680606497625,0.49122,28398.0,28394.0,0.00018]
[1680606497871,0.021891,28397.0,28395.0,0.4839799]
[1680606498098,0.23595389,28429.0,28412.0,0.4]
[1680606498335,0.43858424,28445.0,28426.0,0.26985276]
[1680606498589,0.00018,28439.0,28429.0,0.26985276]
[1680606498853,0.71060663,28443.0,28429.0,0.27003276]
[1680606499091,0.3718,28441.0,28429.0,0.00018]
[1680606499323,0.0209,28433.0,28430.0,0.26985276]
[1680606499552,0.014581,28432.0,28430.0,0.26985276]
[1680606499789,0.014581,28432.0,28430.0,0.3993021]
[1680606500014,0.014581,28432.0,28430.0,0.27003276]
[1680606500254,0.16884,28431.0,28430.0,0.00018]
[1680606500504,0.0364711,28431.0,28430.0,0.00018]
[1680606500745,0.016039,28431.0,28430.0,0.75401266]
[1680606500980,0.015137,28432.0,28431.0,0.3718]
[1680606501207,0.015025,28432.0,28431.0,0.60489056]
[1680606501441,0.015025,28432.0,28431.0,0.00018]
[1680606501676,0.0186175,28432.0,28423.0,0.26985276]
[1680606501917,0.0186175,28432.0,28418.0,0.0177172]
[1680606501918,0.03536,28430.0,28418.0,0.0177172]
[1680606502156,0.01080136,28428.0,28416.0,0.2590514]
[1680606502419,0.01080136,28426.0,28421.0,6e-05]
[1680606502651,0.01080136,28426.0,28417.0,0.12926934]
[1680606502652,0.024235,28425.0,28417.0,0.12926934]
[1680606502875,0.15806681,28424.0,28416.0,0.2590514]
[1680606503106,0.024184,28423.0,28416.0,0.2588354]
[1680606503339,0.15732281,28422.0,28416.0,0.2588354]
[1680606503598,0.014942,28421.0,28416.0,0.2586194]
[1680606503828,0.014942,28421.0,28416.0,0.38788874]
[1680606504048,0.1689,28420.0,28416.0,0.2584034]
[1680606504243,0.014684,28419.0,28416.0,0.2581874]
[1680606504729,0.014684,28419.0,28418.0,0.3718]
[1680606504957,0.00018,28421.0,28420.0,0.2581874]
[1680606505202,0.00012,28427.0,28424.0,0.2581874]
[1680606505431,0.00012,28427.0,28425.0,0.12926934]
[1680606505432,0.00018,28427.0,28425.0,0.12926934]
[1680606505657,0.0209,28433.0,28428.0,0.2581874]
[1680606505658,0.00018,28429.0,28428.0,0.2581874]
[1680606505876,0.014736,28430.0,28428.0,0.28745674]
[1680606506102,0.183576,28430.0,28429.0,0.02926934]
[1680606506325,0.014736,28430.0,28429.0,0.02926934]
[1680606506548,0.00018,28431.0,28429.0,0.40106934]
[1680606506549,0.014817,28431.0,28429.0,0.40106934]
[1680606506773,0.014817,28431.0,28430.0,0.72651056]
[1680606507000,0.014817,28431.0,28429.0,0.02926934]
[1680606507001,0.014817,28431.0,28429.0,0.25018]
[1680606507232,0.183941,28432.0,28431.0,0.2581874]
[1680606507736,0.0209,28439.0,28438.0,0.2581274]
[1680606507741,3.63372769,28454.0,28438.0,0.2580074]
[1680606507742,0.01184536,28451.0,28438.0,0.2580074]
[1680606508014,0.16896,28443.0,28440.0,0.25]
[1680606508305,0.00018,28443.0,28442.0,0.2580074]
[1680606508631,0.16878,28448.0,28446.0,0.2580074]
[1680606508872,0.16878,28448.0,28447.0,0.02926934]
[1680606509371,0.16878,28448.0,28445.0,0.00018]
[1680606509372,0.010933,28448.0,28445.0,0.00018]
[1680606509376,0.16878,28447.0,28445.0,0.00018]
[1680606509650,0.00018,28449.0,28447.0,0.2480074]
[1680606509908,0.010385,28449.0,28447.0,0.2480074]
[1680606510136,0.179105,28449.0,28447.0,0.2481874]
[1680606510379,1.044878,28450.0,28444.0,0.2480074]
[1680606510380,0.177942,28448.0,28444.0,0.2480074]
[1680606510615,0.177942,28448.0,28430.0,1.12188]
[1680606510616,0.010385,28447.0,28443.0,0.00018]
[1680606510847,0.010385,28447.0,28444.0,0.3839799]
[1680606511076,0.00018,28448.0,28447.0,0.29459855]
[1680606511308,1.044878,28450.0,28449.0,0.2478274]
[1680606511542,1.055766,28450.0,28449.0,0.2478274]
[1680606511791,0.2,28449.0,28448.0,6e-05]
[1680606512017,0.2,28448.0,28435.0,0.17583]
[1680606512251,0.36054281,28447.0,28436.0,0.25018]
[1680606512486,0.009337,28446.0,28434.0,0.00018]
[1680606512715,0.009337,28446.0,28434.0,0.02926934]
[1680606512716,0.13689681,28445.0,28434.0,0.02926934]
[1680606512946,0.018647,28444.0,28434.0,0.00018]
[1680606513179,0.15123381,28443.0,28434.0,0.44914717]
[1680606513412,0.01021,28442.0,28434.0,0.03451594]
[1680606513644,0.01021,28442.0,28437.0,0.2]
[1680606513882,0.009337,28444.0,28436.0,0.2]
[1680606514112,0.178117,28444.0,28438.0,0.6390465]
[1680606514348,0.16878,28446.0,28442.0,0.2]
[1680606514581,0.16872,28449.0,28443.0,0.03433594]
[1680606514810,0.010772,28448.0,28445.0,0.25]
[1680606515056,0.16872,28448.0,28445.0,0.00018]
[1680606515285,0.010679,28447.0,28446.0,0.03433594]
[1680606515522,0.010679,28447.0,28443.0,0.2]
[1680606515755,1.044878,28450.0,28443.0,0.00018]
[1680606515756,0.008868,28449.0,28443.0,0.00018]
[1680606516001,0.010679,28448.0,28442.0,0.24688]
[1680606516251,0.010679,28448.0,28433.0,1.1]
[1680606516252,0.179639,28448.0,28439.0,0.00018]
[1680606516502,0.179639,28448.0,28432.0,0.2]
[1680606516503,0.177648,28447.0,28432.0,0.2]
[1680606516754,0.35257581,28446.0,28430.0,0.00018]
[1680606517019,0.258868,28445.0,28430.0,0.03433594]
[1680606517263,0.20955429,28444.0,28431.0,0.03433594]
[1680606517513,0.008438,28441.0,28431.0,0.03433594]
[1680606517760,0.15231981,28440.0,28428.0,0.2]
[1680606517997,0.009124,28439.0,28429.0,0.25]
[1680606518252,0.009124,28439.0,28428.0,0.2]
[1680606518253,0.2,28435.0,28428.0,0.00018]
[1680606518483,0.2,28435.0,28420.0,0.2]
[1680606518484,0.17173981,28434.0,28420.0,0.2]
[1680606518721,0.018144,28433.0,28420.0,0.2]
[1680606518961,0.34189681,28432.0,28417.0,0.00018]
[1680606519187,0.309655,28431.0,28417.0,0.03433594]
[1680606519419,0.008442,28429.0,28418.0,0.03433594]
[1680606519648,0.16005181,28428.0,28418.0,0.06136394]
[1680606519880,0.259892,28427.0,28418.0,0.06142394]
[1680606520116,0.15155181,28426.0,28419.0,0.06124394]
[1680606520356,0.009892,28425.0,28419.0,0.00018]
[1680606520580,0.14189681,28424.0,28419.0,0.00018]
[1680606520819,0.28510181,28424.0,28417.0,0.00012]
[1680606521056,0.28510181,28424.0,28417.0,0.63304394]
[1680606521057,0.17642,28423.0,28417.0,0.63304394]
[1680606521295,0.3,28432.0,28417.0,0.63304394]
[1680606521296,0.00018,28425.0,28422.0,0.1]
[1680606521525,0.00885577,28442.0,28426.0,0.1]
[1680606521526,0.16884,28436.0,28426.0,0.1]
[1680606521757,0.00787,28435.0,28430.0,0.1]
[1680606521982,0.00769,28435.0,28430.0,0.3718]
[1680606522211,0.00769,28435.0,28430.0,0.47198]
[1680606522451,0.25,28443.0,28432.0,0.3718]
[1680606522452,0.16878,28438.0,28432.0,0.3718]
[1680606522698,0.00018,28442.0,28434.0,0.03536]
[1680606522922,0.16878,28437.0,28435.0,0.06124394]
[1680606523156,0.2,28439.0,28431.0,0.00018]
[1680606523383,0.2,28432.0,28429.0,0.03536]
[1680606523615,0.14189681,28432.0,28429.0,0.00018]
[1680606523848,0.16884,28431.0,28429.0,0.00012]
[1680606524121,0.00018,28435.0,28422.0,0.54789]
[1680606524364,0.14189681,28434.0,28430.0,0.72651056]
[1680606524626,0.00018,28438.0,28432.0,0.3718]
[1680606524851,0.16878,28441.0,28434.0,0.3718]
[1680606525077,0.16896,28442.0,28436.0,0.3718]
[1680606525335,0.16878,28440.0,28437.0,0.7877545]
[1680606525563,0.16896,28443.0,28438.0,0.05419]
[1680606525796,0.00018,28445.0,28439.0,0.06124394]
[1680606526039,0.2,28440.0,28438.0,2.66428]
[1680606526275,0.00018,28441.0,28438.0,0.00018]
[1680606526533,0.00018,28441.0,28421.0,1.5234]
[1680606526534,0.14189681,28444.0,28439.0,2.6639]
[1680606526755,0.16884,28442.0,28439.0,2.66408]
[1680606526981,0.16878,28443.0,28439.0,2.66408]
[1680606527219,0.2,28440.0,28439.0,0.00018]
[1680606527449,0.00012,28439.0,28436.0,2.9419]
[1680606527673,0.2,28437.0,28436.0,0.00018]
[1680606527906,0.2,28437.0,28434.0,2.9422]